bitfinex/quotes_ETHUSD_20260225
["timestamp","ask_amount","ask_price","bid_price","bid_amount"]
[1772062341064,1.233,2066.5,2065.3,2.41732178]
[1772062341456,1.233,2066.5,2064.7,2.34636958]
[1772062341457,3.59164435,2066.5,2064.7,2.41732178]
[1772062341649,3.59164435,2066.5,2064.8,2.41732178]
[1772062341871,0.18685624,2066.4,2064.8,2.41732178]
[1772062342070,2.54550059,2066.4,2064.8,2.41732178]
[1772062342270,1.233,2066.5,2064.8,2.41732178]
[1772062342271,2.35864435,2066.3,2064.8,2.41732178]
[1772062342479,0.18685624,2066.1,2064.8,2.41732178]
[1772062342983,0.18685624,2066.1,2064.3,30.0]
[1772062342984,1.12394954,2066.0,2064.3,30.0]
[1772062343140,1.20983352,2066.5,2065.0,2.41732178]
[1772062343344,1.20983352,2066.5,2065.2,2.41732178]
[1772062345473,4.83909992,2066.6,2065.2,2.41732178]
[1772062345981,4.83909992,2066.6,2065.3,2.54828206]
[1772062346677,7.51024933,2066.6,2065.3,2.54828206]
[1772062346986,2.85800565,2066.5,2065.1,1.308]
[1772062347171,2.85800565,2066.5,2065.1,3.85628206]
[1772062347371,1.20983352,2066.4,2065.2,2.54828206]
[1772062348445,2.67114941,2066.3,2065.1,1.308]
[1772062348662,2.068,2066.2,2064.9,0.001]
[1772062348859,5.16814313,2065.9,2064.9,0.001]
[1772062349249,1.21018491,2065.8,2064.9,0.001]
[1772062350651,6.31318491,2065.8,2064.9,0.001]
[1772062350872,1.21018491,2065.8,2064.9,0.001]
[1772062351073,1.21018491,2065.8,2064.9,2.54928206]
[1772062351279,2.67114941,2066.3,2064.9,2.54928206]
[1772062351453,2.067,2066.0,2065.0,2.5066652]
[1772062352592,2.067,2066.0,2064.9,0.001]
[1772062352796,2.067,2066.0,2064.9,1.21170621]
[1772062353006,2.067,2066.0,2065.0,2.5066652]
[1772062353309,1.21012633,2065.9,2065.0,2.5066652]
[1772062353672,3.78121391,2066.7,2065.1,2.5066652]
[1772062354003,4.83953518,2066.6,2065.1,2.5066652]
[1772062354902,4.83953518,2066.6,2065.3,2.5066652]
[1772062355273,4.83953518,2066.6,2065.3,2.0066652]
[1772062355476,4.83953518,2066.6,2065.5,2.5066652]
[1772062356494,4.83953518,2066.6,2065.5,2.4309152]
[1772062356698,1.20971644,2066.6,2065.5,2.4309152]
[1772062357001,1.20918984,2067.5,2065.8,2.5066652]
[1772062357177,3.27818984,2067.5,2065.8,2.5066652]
[1772062357524,3.27818984,2067.5,2065.8,1.21016684]
[1772062357525,1.20930682,2067.3,2065.8,1.21016684]
[1772062357739,1.20930682,2067.3,2065.9,2.5066652]
[1772062357894,2.57149747,2067.0,2065.6,1.21030209]
[1772062358208,2.34636958,2067.1,2065.6,1.21030209]
[1772062358209,4.64049747,2066.9,2065.6,2.5066652]
[1772062358506,4.64049747,2066.9,2065.2,2.5066652]
[1772062358507,2.75835371,2066.6,2065.2,2.5066652]
[1772062358713,2.75835371,2066.6,2065.1,1.21165887]
[1772062358714,2.57149747,2066.2,2065.1,0.0011]
[1772062358879,2.57149747,2066.0,2065.1,0.0011]
[1772062359680,1.21012633,2065.9,2065.1,0.0011]
[1772062360283,1.21012633,2065.9,2064.7,3.65136858]
[1772062360813,2.53071674,2065.8,2064.6,3.71853394]
[1772062361114,2.53071674,2065.8,2064.7,2.5066652]
[1772062361814,2.53071674,2065.8,2064.6,1.21186874]
[1772062361815,1.2102435,2065.7,2064.6,0.001]
[1772062363591,1.2102435,2065.7,2064.6,2.5076652]
[1772062363794,1.2102435,2065.7,2064.7,1.21082966]
[1772062364116,1.2102435,2065.7,2064.6,2.5076652]
[1772062364320,1.2102435,2065.7,2064.4,0.001]
[1772062364321,2.75835371,2065.6,2064.4,0.001]
[1772062364486,2.069,2065.5,2064.4,3.71866763]
[1772062364892,2.069,2065.5,2064.4,1.21199886]
[1772062364893,2.57149747,2065.4,2064.4,1.21199886]
[1772062365095,2.069,2065.5,2064.4,0.001]
[1772062365713,1.21041928,2065.4,2064.4,0.001]
[1772062366597,1.21041928,2065.4,2064.4,2.5066652]
[1772062366905,3.27940771,2065.5,2064.4,2.5066652]
[1772062367924,12.16202531,2065.8,2064.9,2.5077652]
[1772062367925,0.001,2065.8,2064.9,2.5077652]
[1772062368218,2.77529959,2065.8,2064.9,2.5077652]
[1772062368404,2.77429959,2065.7,2064.9,2.5077652]
[1772062368605,2.77429959,2065.7,2064.9,0.0011]
[1772062368806,2.77429959,2065.7,2064.9,2.5077652]
[1772062369001,2.77429959,2065.6,2064.9,2.5077652]
[1772062369325,3.32859485,2066.3,2065.3,2.5066652]
[1772062369496,1.20989614,2066.3,2065.3,2.5066652]
[1772062369909,3.32859485,2066.1,2065.0,5.77727632]
[1772062370104,3.32859485,2065.9,2065.0,3.71727632]
[1772062370307,0.613575,2065.3,2064.9,0.0011]
[1772062370507,0.613575,2065.3,2064.9,1.21178222]
[1772062370829,0.613575,2065.3,2065.0,2.5066652]
[1772062371207,3.32859485,2065.7,2065.0,2.5066652]
[1772062371524,3.32859485,2065.8,2065.0,2.5066652]
[1772062372028,3.32859485,2065.8,2064.9,1.21178222]
[1772062372029,4.53883835,2065.7,2064.9,1.21177231]
[1772062372226,3.32859485,2065.6,2064.9,0.0011]
[1772062372599,3.32859485,2065.5,2064.9,0.0011]
[1772062372831,3.32859485,2065.5,2064.9,1.2118106]
[1772062373005,7.38110853,2065.7,2064.9,0.0011]
[1772062373006,3.32859485,2065.6,2064.9,0.0011]
[1772062373210,3.32859485,2065.6,2064.9,3.71846231]
[1772062374426,1.21036068,2065.5,2064.9,0.0011]
[1772062374941,4.53895553,2065.5,2064.9,0.0011]
[1772062375745,4.53895553,2065.5,2064.9,2.67615522]
[1772062375746,3.32859485,2065.5,2064.9,2.67615522]
[1772062376064,6.17086503,2065.7,2064.9,2.67615522]
[1772062376065,4.53889799,2065.6,2064.9,2.67615522]
[1772062376268,3.32859485,2065.6,2064.9,2.67615522]
[1772062376559,3.32859485,2065.6,2065.0,1.21065375]
[1772062376868,3.32859485,2065.6,2065.0,3.88570897]
[1772062378567,4.53890267,2065.6,2065.0,3.88570897]
[1772062378872,4.53890267,2065.6,2065.0,1.21065375]
[1772062379369,4.53890267,2065.6,2064.8,7.51803894]
[1772062379665,4.53890267,2065.6,2064.9,2.67505522]
[1772062380051,3.32859485,2065.6,2065.1,0.0011]
[1772062380450,4.53890018,2065.6,2065.1,0.0011]
[1772062380770,3.32859485,2065.6,2065.1,0.0011]
[1772062381170,2.81036787,2065.5,2065.1,0.0011]
[1772062381365,2.81036787,2065.4,2065.1,0.0011]
[1772062381553,2.81036787,2065.3,2064.9,0.0011]
[1772062381754,3.32859485,2065.5,2064.9,0.0011]
[1772062381755,2.81036787,2065.2,2064.9,3.88685895]
[1772062381960,3.32859485,2065.6,2064.9,3.88685895]
[1772062382142,5.44240423,2065.7,2064.9,3.88685895]
[1772062382543,0.001,2065.7,2065.1,1.21059512]
[1772062382952,0.001,2065.7,2065.2,2.67505522]
[1772062384579,0.001,2065.7,2065.3,3.88553311]
[1772062385149,7.48260353,2066.5,2065.4,2.67505522]
[1772062385150,2.64326943,2066.5,2065.4,2.67505522]
[1772062385384,3.85305396,2066.5,2065.4,2.67505522]
[1772062385699,2.64326943,2066.8,2065.6,2.67505522]
[1772062385976,2.64326943,2066.8,2065.6,4.73705522]
[1772062386570,2.64326943,2066.8,2065.6,4.68183347]
[1772062386766,2.64326943,2067.1,2065.8,2.67505522]
[1772062388580,2.64326943,2067.1,2065.7,3.88529872]
[1772062388886,2.64326943,2066.9,2065.8,2.67505522]
[1772062389391,3.27848234,2067.0,2065.7,1.2102435]
[1772062389392,2.64326943,2066.7,2065.7,1.2102435]
[1772062389557,2.64326943,2066.5,2065.7,1.2102435]
[1772062389759,2.69203862,2066.4,2065.6,2.062]
[1772062389975,2.69203862,2066.4,2065.5,1.21031825]
[1772062389976,2.64326943,2066.3,2065.5,1.21031825]
[1772062390178,2.69203862,2066.2,2065.5,1.21031825]
[1772062390393,0.01329642,2066.1,2065.3,1.21044018]
[1772062390597,0.04876919,2066.0,2065.3,1.21044018]
[1772062390804,0.01329642,2065.9,2065.3,1.21044018]
[1772062390981,0.04876919,2065.8,2065.3,1.21044018]
[1772062391298,0.04876919,2065.8,2065.2,1.21049833]
[1772062391299,0.01329642,2065.7,2065.2,1.21049833]
[1772062391498,0.04876919,2065.6,2065.0,1.21060831]
[1772062391685,4.84073966,2066.0,2065.0,1.21060831]
[1772062391686,2.64326943,2066.6,2065.4,2.67505522]
[1772062392404,0.001,2065.9,2065.4,2.67505522]
[1772062392781,0.001,2065.9,2065.3,0.0011]
[1772062394198,0.001,2065.9,2065.3,2.67615522]
[1772062395403,0.001,2065.9,2065.4,1.21041928]
[1772062396500,0.001,2065.9,2065.4,1.1607197]
[1772062396877,3.85309179,2066.5,2065.4,3.83577492]
[1772062397073,2.64326943,2066.8,2065.6,2.67505522]
[1772062397408,3.85286918,2066.8,2065.8,2.67505522]
[1772062398020,3.85286918,2066.8,2065.7,1.2102435]
[1772062398021,2.64326943,2066.7,2065.7,1.2102435]
[1772062398395,2.64326943,2066.7,2065.6,1.2102606]
[1772062399032,2.64326943,2066.7,2065.5,1.21031515]
[1772062399326,2.64326943,2066.5,2065.3,4.84300676]
[1772062399489,2.64326943,2066.5,2065.4,2.67505522]
[1772062400821,2.14326943,2066.5,2065.4,2.67505522]
[1772062401026,2.64326943,2066.9,2065.4,2.67505522]
[1772062401229,2.64326943,2066.9,2065.3,4.84300676]
[1772062401230,2.64326943,2066.8,2065.6,2.67505522]
[1772062401422,2.64326943,2066.6,2065.7,1.2102435]
[1772062401637,2.64326943,2066.6,2065.6,3.88531627]
[1772062401839,2.056,2066.5,2065.6,3.88531627]
[1772062402011,2.64326943,2066.4,2065.6,1.21026105]
[1772062404044,1.20989207,2066.3,2065.4,7.51626358]
[1772062404244,3.85315105,2066.4,2065.4,7.51626358]
[1772062404442,3.85315105,2066.4,2065.5,2.67505522]
[1772062405119,3.85315105,2066.4,2065.8,0.0011]
[1772062405538,3.85315105,2066.4,2065.5,2.22995904]
[1772062405712,2.64294539,2066.3,2065.5,0.0011]
[1772062405913,2.64294539,2065.9,2065.0,1.21174869]
[1772062406111,3.28423739,2066.0,2065.0,1.21174869]
[1772062406112,2.64294539,2065.7,2065.0,1.21174869]
[1772062406836,2.64294539,2065.7,2065.0,0.0011]
[1772062407226,2.64294539,2065.7,2065.0,1.21175267]
[1772062407424,2.64294539,2065.7,2065.0,0.0011]
[1772062407848,2.64294539,2065.7,2065.0,1.21174694]
[1772062408147,1.21030209,2065.6,2065.0,0.0011]
[1772062410029,2.05,2066.2,2065.3,2.5682981]
[1772062410232,2.05,2066.2,2065.5,5.85253549]
[1772062410433,2.05,2066.2,2065.5,2.5682981]
[1772062410740,0.001,2066.5,2066.1,3.28423739]
[1772062410941,0.001,2066.5,2065.8,2.5682981]
[1772062411139,3.81288576,2066.5,2065.5,2.65004194]
[1772062411444,2.60210688,2066.4,2065.4,2.047]
[1772062411947,3.8119948,2066.4,2065.5,1.21036068]
[1772062413669,2.60210688,2066.3,2065.2,1.2105365]
[1772062414767,2.60210688,2066.3,2064.9,4.8437553]
[1772062414768,2.60210688,2066.1,2065.0,2.65114194]
[1772062414925,2.051,2066.0,2065.0,2.65114194]
[1772062415539,2.60210688,2066.1,2065.3,2.65004194]
[1772062415540,2.05,2066.1,2065.3,2.65004194]
[1772062416831,2.05,2066.1,2065.4,1.21041928]
[1772062417248,2.05,2066.1,2065.5,0.0011]
[1772062418825,3.260034,2066.1,2065.5,0.0011]
[1772062419030,2.05,2066.1,2065.5,0.0011]
[1772062419555,3.26001242,2066.1,2065.5,0.0011]
[1772062419730,2.05,2066.1,2065.5,0.0011]
[1772062420452,5.86213376,2066.1,2065.5,0.0011]
[1772062421749,2.60210688,2066.0,2065.5,0.0011]
[1772062421956,2.60210688,2066.0,2065.3,0.0011]
[1772062422157,2.60210688,2065.8,2065.0,0.0011]
[1772062422359,2.60210688,2065.8,2065.0,1.21174755]
[1772062422532,2.60210688,2065.8,2065.0,0.0011]
[1772062422934,3.81235038,2065.7,2065.0,0.0011]
[1772062423242,4.64710688,2065.6,2065.0,0.0011]
[1772062423445,3.81233274,2065.8,2065.0,0.0011]
[1772062423639,2.045,2065.9,2065.0,2.65114194]
[1772062423826,2.045,2065.9,2065.2,5.93427933]
[1772062424029,2.045,2065.9,2065.2,2.65004194]
[1772062424333,3.25512694,2065.9,2065.2,2.65004194]
[1772062424930,3.25512694,2065.9,2065.0,0.0011]
[1772062424931,1.2102435,2065.7,2065.0,1.21175375]
[1772062425132,2.60210688,2065.6,2065.0,1.21175375]
[1772062425550,2.60210688,2065.4,2064.5,2.3477818]
[1772062425761,1.2102435,2065.7,2064.9,2.65004194]
[1772062425762,2.60210688,2065.7,2064.9,2.65004194]
[1772062425937,0.001,2066.2,2064.9,2.65004194]
[1772062425938,4.64510688,2066.0,2064.9,2.65004194]
[1772062426150,2.043,2066.0,2065.2,2.65004194]
[1772062426338,0.001,2066.2,2065.4,4.99782374]
[1772062426858,1.21095811,2066.2,2065.4,4.99782374]
[1772062427076,0.001,2066.2,2065.5,1.21036068]
[1772062427655,0.001,2066.2,2065.7,2.3477818]
[1772062429268,0.001,2066.2,2065.7,3.5579821]
[1772062429767,0.001,2066.2,2065.7,6.20802404]
[1772062429934,0.001,2066.5,2066.0,2.3477818]
[1772062430136,0.001,2066.5,2066.0,4.99782374]
[1772062430441,0.001,2066.5,2066.0,2.65004194]
[1772062430647,0.001,2066.5,2065.8,2.3477818]
[1772062431167,0.001,2066.5,2065.8,1.21013971]
[1772062431370,2.60310688,2066.5,2065.7,1.21020089]
[1772062433471,0.001,2066.5,2065.6,2.3477818]
[1772062433655,1.21077839,2066.5,2065.7,2.65004194]
[1772062433983,0.001,2066.5,2065.7,2.65004194]
[1772062434346,0.001,2066.5,2065.5,1.21146068]
[1772062434347,3.81288809,2066.5,2065.5,1.21146068]
[1772062434581,0.001,2066.5,2066.1,2.3477818]
[1772062434744,0.001,2066.5,2065.9,2.65004194]
[1772062435580,0.001,2066.5,2066.0,1.21006776]
[1772062435749,2.60210688,2067.1,2066.2,2.3477818]
[1772062435750,3.81157671,2067.1,2066.2,2.3477818]
[1772062435952,3.81157671,2067.1,2066.2,2.34283104]
[1772062436259,3.83348869,2067.4,2066.5,2.3477818]
[1772062437479,3.83360568,2067.2,2066.4,1.20983352]
[1772062437679,4.8372273,2067.4,2066.4,1.20983352]
[1772062437973,7.46146766,2067.4,2066.4,1.20983352]
[1772062438547,2.62424036,2067.3,2066.3,1.20984578]
[1772062439675,2.62424036,2067.1,2066.2,1.20995063]
[1772062440458,2.62424036,2067.1,2066.1,1.20996555]
[1772062441775,3.8337227,2067.0,2066.1,1.20996555]
[1772062443177,2.62424036,2066.9,2065.9,0.0011]
[1772062443351,2.3477818,2066.7,2065.9,0.0011]
[1772062443550,2.62424036,2066.6,2065.9,0.0011]
[1772062443776,3.83401534,2066.5,2065.9,0.0011]
[1772062444651,2.62424036,2066.4,2065.9,0.0011]
[1772062446083,2.62424036,2066.8,2065.9,0.0011]
[1772062446255,2.62424036,2066.7,2065.9,0.0011]
[1772062446457,2.62424036,2066.4,2065.6,0.0011]
[1772062446665,2.62424036,2066.1,2065.4,0.0011]
[1772062446872,2.62424036,2065.7,2065.0,0.0011]
[1772062447058,2.62424036,2065.6,2065.0,0.0011]
[1772062447386,2.62424036,2065.6,2065.0,1.2117504]
[1772062447679,4.65124036,2065.7,2065.0,1.21173938]
[1772062448185,3.23717104,2065.9,2065.0,0.0011]
[1772062448482,1.21017104,2065.9,2065.0,0.0011]
[1772062450084,6.8673978,2066.0,2065.0,0.0011]
[1772062450085,1.21021301,2065.8,2065.0,0.0011]
[1772062452483,4.84052838,2065.9,2065.0,0.0011]
[1772062453000,7.46476874,2065.9,2065.0,0.0011]
[1772062453175,2.62424036,2065.8,2065.0,0.0011]
[1772062453562,1.20998635,2066.2,2065.3,4.89038962]
[1772062453789,5.85611644,2066.4,2065.5,4.89038962]
[1772062454390,5.85611644,2066.4,2065.5,2.54260782]
[1772062454571,4.64624036,2066.4,2065.6,1.21030209]
[1772062454896,2.022,2066.4,2065.6,6.10069171]
[1772062455187,2.022,2066.4,2065.4,4.84120836]
[1772062455188,3.23184265,2066.4,2065.4,4.84157785]
[1772062455489,3.23184265,2066.4,2065.5,2.3477818]
[1772062455692,2.022,2066.4,2065.7,4.89038962]
[1772062456000,2.62424036,2066.3,2065.4,1.21041928]
[1772062456399,2.62424036,2066.1,2065.2,0.0011]
[1772062456695,2.52756935,2065.9,2065.2,0.0011]
[1772062456900,2.62424036,2065.8,2065.2,0.0011]
[1772062457995,2.62424036,2065.8,2064.7,0.0011]
[1772062458166,2.52756935,2065.9,2064.7,0.0011]
[1772062458167,2.62424036,2065.6,2064.7,0.0011]
[1772062458790,1.21036068,2065.5,2064.7,0.0011]
[1772062459985,7.4656831,2065.6,2064.7,2.3488818]
[1772062459986,3.83454713,2065.6,2064.7,2.3488818]
[1772062460203,3.83454713,2065.6,2064.7,0.0011]
[1772062460487,2.62424036,2065.5,2064.7,0.0011]
[1772062460862,1.21041928,2065.4,2064.7,0.0011]
[1772062461180,3.83465964,2065.4,2064.7,0.0011]
[1772062461380,4.84167715,2065.5,2064.7,0.0011]
[1772062461381,1.21040036,2065.5,2064.7,0.0011]
[1772062462379,1.21014904,2065.9,2064.9,2.54260782]
[1772062462568,3.8343894,2065.9,2064.9,2.54260782]
[1772062462770,8.38080394,2066.2,2065.2,2.3477818]
[1772062462973,2.019,2066.2,2065.3,2.54260782]
[1772062463178,2.62424036,2066.5,2065.5,2.3477818]
[1772062463482,3.83401831,2066.5,2065.5,2.3477818]
[1772062463678,3.83401831,2066.5,2065.3,2.54260782]
[1772062464477,3.83401831,2066.5,2065.5,2.3477818]
[1772062464676,3.83401831,2066.5,2065.3,2.54260782]
[1772062464995,3.83401831,2066.5,2065.4,1.21041928]
[1772062466171,0.001,2065.6,2065.4,1.21041928]
[1772062466492,3.83401831,2066.5,2065.4,1.21041928]
[1772062466798,3.83401831,2066.5,2065.4,3.55820108]
[1772062466992,3.83401831,2066.5,2065.4,5.56720108]
[1772062467580,2.62424036,2066.5,2065.7,2.3477818]
[1772062467782,3.22866205,2066.7,2066.0,2.3477818]
[1772062467978,2.019,2066.7,2066.0,2.3477818]
[1772062468179,0.001,2066.8,2066.3,2.3477818]
[1772062468381,0.001,2066.8,2066.1,2.52598588]
[1772062468574,4.83750178,2067.2,2066.0,2.008]
[1772062468779,1.45057855,2068.2,2067.0,2.3477818]
[1772062468780,2.54704402,2068.1,2067.0,2.3477818]
[1772062469003,2.54704402,2067.9,2066.7,1.20962377]
[1772062469301,2.54704402,2067.9,2066.5,4.83901371]
[1772062472984,2.74132374,2067.7,2066.5,7.56086123]
[1772062473186,2.74132374,2067.7,2066.6,2.72184752]
[1772062473514,2.74132374,2067.7,2066.9,2.3477818]
[1772062473807,1.20896658,2067.9,2066.9,5.06962932]
[1772062474108,5.9682555,2068.0,2066.9,5.06962932]
[1772062474313,5.9682555,2068.0,2067.2,5.06962932]
[1772062474314,2.018,2068.0,2067.2,5.06962932]
[1772062474676,2.018,2068.0,2067.3,2.72184752]
[1772062475210,2.74132374,2067.9,2067.0,1.20944539]
[1772062476509,2.74132374,2067.9,2066.7,1.2096579]
[1772062476813,2.74132374,2067.3,2066.2,1.20995063]
[1772062477019,2.74132374,2067.1,2066.2,1.20995063]
[1772062477180,1.20948234,2067.0,2066.1,4.83988286]
[1772062477524,1.20948234,2067.0,2065.8,2.3477818]
[1772062477525,2.74132374,2066.9,2065.8,2.3477818]
[1772062477819,2.74132374,2066.9,2065.9,3.93197385]
[1772062478001,2.74132374,2066.9,2065.9,1.21012633]
[1772062478592,2.74132374,2066.9,2066.5,0.0011]
[1772062478779,2.74132374,2066.9,2065.9,1.21012633]
[1772062478979,2.74132374,2066.9,2066.2,0.0011]
[1772062479202,3.95092312,2066.8,2066.2,0.0011]
[1772062480309,2.74132374,2066.7,2066.2,0.0011]
[1772062480513,2.016,2066.6,2066.2,0.0011]
[1772062481311,3.22574152,2066.6,2066.2,0.0011]
[1772062481809,3.22573161,2066.6,2066.2,0.0011]
[1772062483133,2.74132374,2066.3,2065.2,1.29]
[1772062483411,2.74132374,2066.3,2065.2,2.50053493]
[1772062484706,2.74132374,2066.3,2065.4,2.3477818]
[1772062484910,2.74132374,2066.3,2065.4,5.06962932]
[1772062485113,1.20981805,2066.5,2065.8,1.21018491]
[1772062485990,3.22573364,2066.6,2065.8,3.93203243]
[1772062486220,2.016,2066.6,2065.8,3.93203243]
[1772062486527,3.22571855,2066.6,2065.8,3.93203243]
[1772062486688,2.74132374,2066.5,2065.6,4.8412052]
[1772062487297,1.20983352,2066.4,2065.6,4.8412052]
[1772062487616,1.20983352,2066.4,2065.6,1.21030209]
[1772062489313,1.20983352,2066.4,2065.6,3.93214961]
[1772062489493,1.20982093,2066.5,2065.7,2.72184752]
[1772062489821,3.22571792,2066.6,2065.7,6.00546147]
[1772062490621,3.22571935,2066.6,2065.7,6.00546147]
[1772062491009,2.74132374,2066.5,2065.8,0.0011]
[1772062491416,2.74132374,2066.3,2065.8,0.0011]
[1772062493103,3.22576101,2066.6,2065.8,2.72294752]
[1772062493342,2.016,2066.6,2065.9,3.93197385]
[1772062493700,2.016,2066.6,2066.0,2.72184752]
[1772062493905,4.83749588,2067.2,2065.9,1.21012633]
[1772062493906,2.011,2067.0,2066.2,2.72184752]
[1772062495137,4.75232374,2067.0,2066.0,2.05248918]
[1772062495455,2.011,2067.0,2066.3,2.72184752]
[1772062496545,3.22048833,2067.0,2066.3,2.72184752]
[1772062496908,5.83719173,2067.0,2066.2,1.20995063]
[1772062497231,2.6167034,2066.9,2066.1,1.20996482]
[1772062497401,1.20959938,2066.8,2066.1,1.20996482]
[1772062497602,3.826289,2066.9,2066.1,1.20996482]
[1772062499018,3.826289,2066.9,2066.0,5.88801938]
[1772062499330,3.826289,2066.9,2065.8,3.28471395]
[1772062499331,2.6167034,2066.7,2065.8,1.2112827]
[1772062499528,1.20971644,2066.6,2065.8,2.62660898]
[1772062499729,2.009,2066.5,2065.8,2.62660898]
[1772062500229,4.6257034,2066.5,2065.8,0.0011]
[1772062500440,2.6167034,2066.4,2065.8,0.0011]
[1772062500934,2.009,2066.5,2065.8,0.0011]
[1772062501633,2.009,2066.5,2065.9,3.83563531]
[1772062501828,2.009,2066.5,2066.0,2.62550898]
[1772062502035,2.009,2066.9,2066.0,2.62550898]
[1772062502403,4.6257034,2066.9,2065.9,1.21012633]
[1772062502970,4.6257034,2066.9,2065.9,3.83563531]
[1772062503824,5.83524835,2066.9,2065.9,3.83563531]
[1772062504027,3.21854295,2066.9,2066.1,3.28361395]
[1772062504212,0.001,2066.7,2066.1,3.28361395]
[1772062505137,2.009,2066.9,2066.1,3.28361395]
[1772062505138,2.009,2066.9,2066.2,2.62550898]
[1772062505742,2.009,2066.9,2066.3,1.20989207]
[1772062505956,2.009,2066.9,2066.3,3.83540105]
[1772062506447,2.009,2066.9,2066.3,1.20989207]
[1772062507745,3.2123042,2067.4,2066.5,2.62550898]
[1772062507941,2.003,2067.4,2066.7,3.28361395]
[1772062508135,0.001,2067.5,2066.7,5.90912293]
[1772062508337,3.82689383,2067.5,2066.6,1.20971644]
[1772062508545,2.6167034,2067.4,2066.1,4.67799816]
[1772062508856,2.6167034,2067.2,2066.2,4.83960657]
[1772062509474,2.6167034,2067.2,2066.3,5.90912293]
[1772062510417,1.20942383,2067.1,2066.4,1.20983352]
[1772062514767,1.20940378,2067.2,2066.4,3.8353425]
[1772062515067,3.21235483,2067.3,2066.4,3.8353425]
[1772062515229,2.003,2067.3,2066.6,3.28361395]
[1772062515557,3.82692767,2067.5,2066.6,5.90912293]
[1772062516137,0.001,2067.5,2066.7,2.62550898]
[1772062516334,1.2101982,2067.5,2066.7,2.62550898]
[1772062516538,1.2101982,2067.5,2066.5,1.99]
[1772062516539,2.6167034,2067.4,2066.5,1.99]
[1772062518362,1.20930682,2067.3,2066.6,1.20971644]
[1772062519063,3.82596304,2067.4,2066.6,3.83522542]
[1772062519764,0.001,2067.5,2066.8,5.90912293]
[1772062520060,0.001,2067.5,2066.9,2.62550898]
[1772062520244,0.001,2067.5,2067.1,1.20942383]
[1772062521339,0.001,2067.7,2067.2,2.62550898]
[1772062521655,0.001,2067.7,2067.1,1.20942383]
[1772062522038,2.6177034,2067.7,2066.6,5.82416688]
[1772062522266,2.6167034,2067.5,2066.7,1.2096579]
[1772062522768,2.6167034,2067.5,2066.6,3.198669]
[1772062522964,2.6167034,2067.5,2066.6,1.209669]
[1772062523765,2.6167034,2067.5,2066.6,3.83517798]
[1772062524530,1.20924833,2067.4,2066.6,3.83517798]
[1772062524731,2.6167034,2067.3,2066.6,1.209669]
[1772062525155,1.20924833,2067.4,2066.6,1.209669]
[1772062525493,3.82595173,2067.4,2066.6,1.209669]
[1772062526943,2.45342689,2067.7,2066.7,2.69324117]
[1772062527156,2.45342689,2067.7,2066.9,5.97685512]
[1772062527157,3.66255055,2067.7,2066.9,5.97685512]
[1772062527463,0.001,2067.7,2067.0,2.69324117]
[1772062529146,1.2100848,2067.7,2067.1,1.20942383]
[1772062529345,1.2100848,2067.7,2067.0,1.20943976]
[1772062529564,0.001,2067.2,2066.9,3.19550687]
[1772062530263,0.001,2067.2,2066.8,1.20957341]
[1772062533272,0.001,2067.2,2066.7,4.83970952]
[1772062533273,0.001,2067.2,2066.7,0.0011]
[1772062539956,0.001,2067.2,2066.7,2.62997747]
[1772062540263,0.001,2067.2,2066.7,5.91359142]
[1772062540650,0.001,2067.2,2066.8,1.20959938]
[1772062541351,0.001,2067.2,2066.7,7.12320742]
[1772062543174,0.001,2067.2,2066.9,0.0011]
[1772062545077,2.54873158,2067.2,2066.9,0.0011]
[1772062545277,3.75813706,2067.2,2066.9,0.0011]
[1772062545884,0.001,2067.3,2066.9,0.0011]
[1772062546550,3.75688931,2067.6,2066.9,0.0011]
[1772062546950,2.54773158,2067.5,2066.9,0.0011]
[1772062547879,3.75693027,2067.5,2066.9,1.21064085]
[1772062548674,3.75693027,2067.5,2066.9,3.83951832]
[1772062549369,1.21011137,2067.7,2067.0,2.62887747]
[1772062549578,3.75780854,2067.7,2067.2,2.34255437]
[1772062549880,3.75780854,2067.7,2067.2,6.18074804]
[1772062549881,0.001,2067.7,2067.2,6.18074804]
[1772062550086,3.75780753,2067.7,2067.2,3.55187057]
[1772062551066,3.75780753,2067.7,2067.2,2.34255437]
[1772062551378,3.75780753,2067.7,2067.2,3.55190977]
[1772062551898,3.75780753,2067.7,2067.2,2.34255437]
[1772062552071,3.75780753,2067.7,2067.1,1.20937777]
[1772062552275,2.54773158,2067.6,2066.9,5.54316124]
[1772062552485,2.54773158,2067.6,2066.9,1.21060687]
[1772062553198,2.54773158,2067.6,2066.9,0.0011]
[1772062553399,2.54773158,2067.6,2066.9,1.21063786]
[1772062553775,2.54773158,2067.6,2066.9,0.0011]
[1772062554004,2.54773158,2067.4,2066.9,0.0011]
[1772062556004,1.20930682,2067.3,2066.9,0.0011]
[1772062556306,3.72068143,2067.3,2066.9,0.0011]
[1772062558191,3.72068143,2067.3,2067.1,0.0011]
[1772062558375,3.72168143,2067.3,2067.1,0.0011]
[1772062559019,2.51237461,2067.3,2067.1,0.0011]
[1772062559594,0.001,2067.3,2067.1,0.0011]
[1772062560811,2.51237461,2067.7,2067.1,0.0011]
[1772062561126,3.72148582,2067.7,2067.1,2.41870223]
[1772062561411,2.51137461,2067.6,2067.1,2.41870223]
[1772062563326,2.51137461,2067.6,2067.1,3.62809591]
[1772062563926,2.51137461,2067.5,2067.1,0.0011]
[1772062565212,3.72062294,2067.4,2067.1,0.0011]
[1772062565395,2.51137461,2067.3,2066.9,0.0011]
[1772062565899,2.51137461,2067.3,2066.7,0.0011]
[1772062567918,1.20936532,2067.2,2066.7,0.0011]
[1772062568107,3.72073993,2067.2,2066.7,0.0011]
[1772062569518,2.51137461,2067.0,2066.7,0.0011]
[1772062569828,2.51137461,2067.0,2066.2,0.0011]
[1772062570112,2.51137461,2066.8,2066.2,0.0011]
[1772062571591,1.982,2066.7,2066.2,0.0011]
[1772062571794,2.51137461,2066.6,2066.2,0.0011]
[1772062572221,1.20977498,2066.5,2066.2,0.0011]
[1772062572424,1.20977498,2066.5,2066.4,0.0011]
[1772062573822,3.72113433,2066.6,2066.4,0.0011]
[1772062574713,2.51137461,2066.6,2066.4,0.0011]
[1772062574916,3.721101,2066.6,2066.4,0.0011]
[1772062575832,2.51137461,2066.9,2066.4,0.0011]
[1772062575998,1.20957104,2066.9,2066.4,2.41870223]
[1772062576321,1.986,2067.0,2066.5,2.41760223]
[1772062576520,1.986,2067.0,2066.6,3.62731867]
[1772062576723,3.19549596,2067.0,2066.6,2.41760223]
[1772062578068,1.986,2067.0,2066.6,2.41760223]
[1772062578398,1.986,2067.0,2066.5,1.20976402]